bitfinex/quotes_ETHUSD_20250525
["timestamp","ask_amount","ask_price","bid_price","bid_amount"]
[1748208826534,0.05,2512.9,2512.8,14.52646367]
[1748208826914,0.05,2512.9,2512.8,13.46902432]
[1748208827118,0.05,2512.9,2512.8,8.69162432]
[1748208827434,0.05,2512.9,2512.8,12.66562432]
[1748208827643,0.05,2512.9,2512.8,20.66562432]
[1748208828046,0.05,2512.9,2512.8,12.66562432]
[1748208828446,0.05,2512.9,2512.8,20.66562432]
[1748208829764,0.05,2512.9,2512.8,11.97962432]
[1748208829938,0.05,2512.9,2512.8,15.95362432]
[1748208830137,0.05,2512.9,2512.8,11.97962432]
[1748208830338,0.05,2512.9,2512.8,15.95362432]
[1748208831326,0.05,2512.9,2512.8,11.974]
[1748208831672,0.05,2512.9,2512.8,8.0]
[1748208831855,0.05,2512.9,2512.8,11.974]
[1748208832771,0.05,2512.9,2512.8,8.0]
[1748208832974,0.05,2512.9,2512.8,15.95362432]
[1748208834169,0.05,2512.9,2512.8,11.974]
[1748208834372,0.05,2512.9,2512.8,15.95362432]
[1748208835676,0.05,2512.9,2512.8,19.22776449]
[1748208835977,0.05,2512.9,2512.8,19.77776449]
[1748208839127,0.05,2512.9,2512.8,28.31529147]
[1748208840165,0.05,2513.9,2513.8,3.97804121]
[1748208840364,0.05,2513.9,2513.8,8.34984533]
[1748208840525,0.05,2513.9,2513.8,15.95204121]
[1748208843772,0.8514,2513.9,2513.7,3.973]
[1748208843976,0.8514,2513.9,2513.5,3.97843542]
[1748208844175,0.8514,2513.9,2513.6,3.97833166]
[1748208844384,1.33431385,2513.9,2513.4,7.95164843]
[1748208844677,3.97804867,2513.8,2513.4,7.95164843]
[1748208844869,3.97804867,2513.8,2513.4,3.973]
[1748208845476,3.97804867,2513.8,2513.4,7.9516629]
[1748208845778,3.97814902,2513.8,2513.4,11.973]
[1748208847575,5.31225297,2513.9,2513.4,15.95167322]
[1748208848982,3.97807654,2513.8,2513.3,3.97874381]
[1748208849278,3.97807654,2513.8,2513.5,3.973]
[1748208851209,0.8514,2513.9,2513.5,3.973]
[1748208851351,0.8514,2513.9,2513.7,3.97811652]
[1748208851695,0.8514,2513.9,2513.8,3.97804121]
[1748208852503,0.05,2513.9,2513.8,3.97804121]
[1748208854677,0.05,2513.9,2513.8,11.97804121]
[1748208855792,0.05,2513.9,2513.8,12.52804121]
[1748208855997,0.05,2513.9,2513.8,15.03241587]
[1748208856862,0.05,2513.9,2513.8,15.85651587]
[1748208865604,0.05,2514.9,2514.8,3.97645936]
[1748208865775,0.05,2514.9,2514.8,7.94845936]
[1748208868008,0.05,2514.9,2514.8,15.94845936]
[1748208868211,0.05,2514.9,2514.8,18.09918738]
[1748208869099,0.05,2514.9,2514.8,18.64918738]
[1748208873122,0.05,2514.9,2514.8,19.44358738]
[1748208873917,0.05,2514.9,2514.8,24.04858738]
[1748208875715,0.05,2514.9,2514.8,30.05858738]
[1748208878857,0.05,2514.9,2514.8,21.48158738]
[1748208879057,0.05,2514.9,2514.8,30.05758738]
[1748208880069,0.05,2514.9,2514.8,24.04758738]
[1748208880378,0.8792,2515.9,2515.8,11.97487876]
[1748208880571,0.8792,2515.9,2515.8,15.94487876]
[1748208881274,0.05,2515.9,2515.8,16.49487876]
[1748208884623,0.05,2515.9,2515.8,18.95941893]
[1748208895274,0.05,2515.9,2515.8,19.71321893]
[1748208897169,0.05,2515.9,2515.8,24.19521893]
[1748208899103,0.05,2515.9,2515.8,15.74321893]
[1748208899275,0.05,2515.9,2515.4,8.45845251]
[1748208899581,0.05,2515.9,2515.6,3.969]
[1748208899895,0.05,2515.9,2515.6,7.94412135]
[1748208900385,0.7886,2515.8,2515.6,3.97516354]
[1748208900589,0.7886,2515.8,2515.6,3.969]
[1748208900773,0.7886,2515.8,2515.6,7.94416619]
[1748208900976,0.7886,2515.8,2515.7,3.97503676]
[1748208901511,0.7886,2515.8,2515.6,7.94410471]
[1748208901860,0.7886,2515.8,2515.6,3.969]
[1748208902222,0.7886,2515.8,2515.6,7.94412535]
[1748208902501,0.7886,2515.8,2515.3,8.0]
[1748208902710,0.7886,2515.8,2515.7,3.969]
[1748208903364,3.97506057,2515.7,2515.3,8.0]
[1748208903554,3.97506057,2515.7,2515.4,3.969]
[1748208903976,0.7628,2515.5,2515.2,4.483]
[1748208904198,0.7628,2515.5,2515.2,8.0]
[1748208904403,0.7628,2515.5,2515.3,3.969]
[1748208904815,0.7628,2515.5,2515.3,7.94461244]
[1748208905116,0.7628,2515.5,2515.3,3.969]
[1748208905256,0.7628,2515.5,2515.3,7.94466831]
[1748208905463,0.7628,2515.5,2515.3,3.969]
[1748208905663,0.7628,2515.5,2515.3,7.94465486]
[1748208905980,0.7628,2515.5,2515.3,3.969]
[1748208906196,0.7628,2515.5,2515.2,16.45975374]
[1748208906197,0.7628,2515.5,2515.4,3.969]
[1748208907161,0.7628,2515.5,2515.2,16.45969058]
[1748208907162,0.7628,2515.5,2515.2,8.0]
[1748208907504,4.73826193,2515.5,2515.3,3.969]
[1748208907656,3.9756689,2515.3,2514.5,4.484]
[1748208907997,3.976088,2515.1,2514.6,7.94667903]
[1748208908170,4.74980292,2515.2,2514.7,3.97659964]
[1748208909202,3.97600491,2515.1,2514.6,7.94671521]
[1748208909561,0.7739,2515.2,2514.7,3.97656879]
[1748208909926,3.97611144,2515.1,2514.8,3.97]
[1748208910060,0.7739,2515.0,2514.3,8.74241992]
[1748208910257,0.7739,2515.0,2514.4,3.97]
[1748208910460,0.7739,2515.0,2514.6,4.25841992]
[1748208911486,0.7739,2515.0,2514.7,3.97654472]
[1748208911685,0.7739,2515.0,2514.8,3.97]
[1748208912389,0.7788,2515.4,2515.1,3.97590951]
[1748208912608,0.7788,2515.4,2514.9,3.97630124]
[1748208912805,0.7788,2515.4,2515.0,3.9760901]
[1748208913481,0.7636,2515.2,2514.9,3.97626131]
[1748208913686,0.7636,2515.2,2515.0,7.94612421]
[1748208915141,0.7636,2515.2,2515.0,3.97]
[1748208915348,0.7636,2515.2,2515.0,7.94613307]
[1748208916155,0.7636,2515.2,2514.7,8.0]
[1748208916451,4.73949947,2515.2,2514.8,3.97]
[1748208917084,0.7636,2515.2,2514.8,3.97]
[1748208917285,0.7636,2515.2,2514.8,5.19050351]
[1748208917591,0.7636,2515.2,2515.0,3.9761153]
[1748208919211,0.7636,2515.2,2514.9,3.9762645]
[1748208920227,0.7636,2515.2,2515.0,3.97612959]
[1748208921018,0.7636,2515.2,2514.9,3.97623469]
[1748208923935,3.97598505,2515.1,2514.8,1.22050351]
[1748208924139,0.8024,2514.7,2513.8,4.449]
[1748208924298,0.7817,2514.2,2513.8,12.39795807]
[1748208924598,0.7817,2514.2,2513.9,3.97784346]
[1748208926435,0.7817,2514.2,2513.9,7.94884346]
[1748208926738,0.7817,2514.2,2513.9,3.97784346]
[1748208928337,0.7817,2514.2,2514.0,3.97769123]
[1748208929025,0.7817,2514.2,2513.9,5.17048866]
[1748208929540,0.7817,2514.2,2514.0,3.97769996]
[1748208930225,0.7817,2514.2,2514.1,3.97756652]
[1748208930602,0.7817,2514.2,2513.9,3.97786172]
[1748208931599,0.7817,2514.2,2514.0,3.97771155]
[1748208931802,0.7817,2514.2,2513.9,3.97779111]
[1748208937740,4.75913791,2514.2,2513.7,3.97819946]
[1748208937943,0.7817,2514.2,2513.7,3.97819946]
[1748208938150,0.7817,2514.2,2513.8,3.97796732]
[1748208938519,0.7817,2514.2,2513.9,3.97785222]
[1748208940414,0.7817,2514.2,2514.0,3.9776515]
[1748208940715,0.7817,2514.2,2513.9,3.97780819]
[1748208940961,0.7817,2514.2,2514.0,3.97769217]
[1748208941259,0.8158,2514.8,2514.4,3.97700128]
[1748208941426,0.8158,2514.8,2514.5,3.97691826]
[1748208942253,0.8158,2514.8,2514.1,3.97755142]
[1748208942254,4.79229003,2514.8,2514.4,3.97699852]
[1748208942749,4.79229003,2514.8,2514.4,3.97708437]
[1748208943114,0.8158,2514.8,2514.4,3.97708437]
[1748208943449,4.7922675,2514.8,2514.4,3.97708437]
[1748208943655,0.8158,2514.8,2514.3,3.97714357]
[1748208944140,0.8158,2514.8,2514.4,3.97701999]
[1748208945973,0.8158,2514.8,2514.5,3.97685683]
[1748208946133,0.8158,2514.8,2514.4,3.9769351]
[1748208947747,0.8158,2514.8,2514.3,3.97718007]
[1748208947748,0.8158,2514.8,2514.3,3.97718847]
[1748208947924,0.8158,2514.8,2514.4,3.97701741]
[1748208948555,0.8158,2514.8,2513.9,8.55]
[1748208948760,4.79237317,2514.8,2514.3,3.9772262]
[1748208949418,4.79237317,2514.8,2514.4,3.97709044]
[1748208950256,4.79237317,2514.8,2514.3,3.9771926]
[1748208950436,4.79237317,2514.8,2514.4,3.9770794]
[1748208951055,4.79237317,2514.8,2514.3,3.97716838]
[1748208951783,2.383,2514.6,2513.7,4.378]
[1748208951939,0.81,2514.1,2513.8,3.97803939]
[1748208952133,0.81,2514.1,2513.7,8.35606837]
[1748208952727,0.81,2514.1,2513.8,3.97804002]
[1748208957969,0.81,2514.1,2513.9,3.97788068]
[1748208958277,0.81,2514.1,2513.8,3.97795766]
[1748208961387,0.81,2514.1,2513.7,8.35609979]
[1748208961558,0.81,2514.1,2513.8,3.97804014]
[1748208961763,0.81,2514.1,2513.9,3.97786265]
[1748208962070,0.81,2514.1,2513.8,3.97795217]
[1748208963482,0.81,2514.1,2513.8,3.97794583]
[1748208966787,0.81,2514.1,2513.9,3.97783266]
[1748208967004,0.81,2514.1,2513.7,3.97812863]
[1748208967372,0.81,2514.1,2513.8,3.97795248]
[1748208968189,0.81,2514.1,2513.7,3.97812863]
[1748208968190,0.81,2514.1,2513.9,3.97784148]
[1748208968350,0.81,2514.1,2513.8,3.97795916]
[1748208968786,0.81,2514.1,2513.7,7.95013026]
[1748208968953,0.81,2514.1,2513.8,3.97803711]
[1748208969876,0.81,2514.1,2513.9,3.97779242]
[1748208970252,0.81,2514.1,2513.8,3.97799979]
[1748208971397,0.81,2514.1,2513.9,3.97779146]
[1748208971890,0.81,2514.1,2513.8,3.97793915]
[1748208972278,0.81,2514.1,2513.7,3.97811253]
[1748208972478,0.81,2514.1,2513.8,3.97800441]
[1748208972691,0.81,2514.1,2513.9,3.97787074]
[1748208973373,0.81,2514.1,2513.8,3.97795532]
[1748208973574,0.81,2514.1,2513.9,3.97786752]
[1748208977095,0.40635648,2514.3,2514.0,3.97772058]
[1748208977300,4.77051294,2514.4,2514.0,3.97772058]
[1748208977794,4.77051294,2514.4,2513.9,3.97778933]
[1748208978003,0.7934,2514.4,2514.0,3.97758064]
[1748208978297,0.7934,2514.4,2514.1,3.97746292]
[1748208978494,0.37912489,2514.3,2514.2,3.97740832]
[1748208979993,0.7827,2514.6,2514.2,3.97740832]
[1748208980162,0.7827,2514.6,2514.0,3.973]
[1748208980376,0.37043946,2514.5,2514.4,3.97709195]
[1748208980689,0.37043946,2514.5,2514.4,7.95009195]
[1748208980998,0.37043946,2514.5,2514.4,8.75139195]
[1748208981362,1.38571627,2515.1,2514.4,8.75139195]
[1748208981363,1.9974974,2515.0,2514.7,3.97661748]
[1748208981569,1.9974974,2515.0,2514.8,3.97645284]
[1748208982205,1.9974974,2515.0,2514.9,3.97630124]
[1748208983620,1.9974974,2515.0,2514.9,5.16877505]
[1748208984999,0.7605,2515.4,2515.0,3.97603965]
[1748208985914,0.7605,2515.4,2515.2,3.97580103]
[1748208986069,0.7605,2515.4,2515.2,3.97568653]
[1748208986434,1.5529328,2515.6,2515.3,3.97565617]
[1748208986789,1.18345759,2515.6,2515.3,3.97565617]
[1748208986985,1.18345759,2515.6,2515.4,3.97541479]
[1748208987306,1.18345759,2515.6,2515.4,3.97547455]
[1748208988379,0.7827,2515.6,2515.4,3.97547455]
[1748208988579,0.7827,2515.6,2515.3,4.77076185]
[1748208988817,0.7827,2515.6,2515.4,3.97549925]
[1748208988976,3.97488878,2515.8,2515.4,3.97549925]
[1748208989181,4.36345689,2515.8,2515.4,3.97549925]
[1748208989713,0.38856811,2515.8,2515.4,3.97549925]
[1748208989917,0.8327,2515.9,2515.5,3.97525771]
[1748208990718,0.8327,2515.9,2515.5,3.97535281]
[1748208990915,0.05,2515.9,2515.7,3.9750159]
[1748208992332,0.05,2515.9,2515.5,3.971]
[1748208992517,0.05,2515.9,2515.6,3.97518304]
[1748208993405,0.05,2515.9,2515.5,8.62593695]
[1748208993820,0.05,2515.9,2515.6,3.97517234]
[1748208994517,0.05,2515.9,2515.5,4.65068023]
[1748208994718,0.05,2515.9,2515.7,3.97495616]
[1748208994918,0.05,2515.9,2515.7,4.8375198]
[1748208995353,3.97514494,2515.7,2515.3,0.79515894]
[1748208995666,0.8052,2515.6,2515.3,4.76615894]
[1748208995844,0.8052,2515.6,2514.7,5.17]
[1748208996153,0.7885,2515.1,2514.8,3.971]
[1748208996852,0.7885,2515.1,2514.2,0.7742]
[1748208997014,3.97636913,2514.9,2514.4,7.94801477]
[1748208998225,3.97636913,2514.9,2514.5,3.97690872]
[1748208998453,3.97636913,2514.9,2514.4,7.94801039]
[1748208999439,3.97650541,2514.8,2514.4,3.971]
[1748208999633,0.7885,2515.1,2514.5,3.97692039]
[1748208999954,1.69029199,2515.1,2514.6,3.9767066]
[1748209000160,3.97615312,2515.0,2514.5,3.9768456]
[1748209000521,0.7885,2515.1,2514.5,3.97693378]
[1748209000858,3.97619324,2515.0,2514.5,3.97685102]
[1748209002059,0.7885,2515.1,2514.4,3.971]
[1748209002262,0.7885,2515.1,2514.7,3.97651937]
[1748209002451,4.76451942,2515.1,2514.7,3.97651937]
[1748209002651,4.76451942,2515.1,2514.6,3.97671318]
[1748209003349,4.76451942,2515.1,2514.7,3.97661725]
[1748209003762,4.76451942,2515.1,2514.6,3.97669544]
[1748209003962,0.7885,2515.1,2514.7,3.9765733]
[1748209004130,4.76448644,2515.1,2514.7,3.9765733]
[1748209005661,0.7885,2515.1,2514.7,3.9765733]
[1748209005841,4.76450806,2515.1,2514.7,3.9765733]
[1748209006159,0.7885,2515.1,2514.8,3.97630134]
[1748209006523,0.7885,2515.1,2514.8,3.97640558]
[1748209006728,0.7885,2515.1,2514.9,3.97621685]
[1748209006929,1.26965018,2515.8,2515.0,0.55]
[1748209007233,0.47025018,2515.8,2515.7,3.97503676]
[1748209007432,0.47025018,2515.8,2515.7,7.94603676]
[1748209007668,0.47025018,2515.8,2515.7,3.971]
[1748209007832,0.47025018,2515.8,2515.7,7.94603676]
[1748209008562,0.05,2515.9,2515.7,7.94593138]
[1748209008865,0.05,2515.9,2515.7,5.24464092]
[1748209009367,0.05,2515.9,2515.7,3.971]
[1748209010029,0.05,2515.9,2515.7,7.94602682]
[1748209011070,0.05,2515.9,2515.7,3.971]
[1748209011868,0.05,2515.9,2515.7,7.94602607]
[1748209012427,0.05,2515.9,2515.7,3.971]
[1748209012774,0.05,2515.9,2515.7,7.94596301]
[1748209012968,0.05,2515.9,2515.7,9.21960613]
[1748209014183,0.05,2515.9,2515.7,5.24464312]
[1748209014563,0.05,2515.9,2515.7,7.94600537]
[1748209016982,0.05,2515.9,2515.6,3.97]
[1748209017461,0.05,2515.9,2515.6,7.94516336]
[1748209018454,4.02474733,2515.9,2515.6,3.97]
[1748209018784,4.02472969,2515.9,2515.6,3.97]
[1748209018984,0.05,2515.9,2515.6,3.97]
[1748209019215,4.02483581,2515.9,2515.6,3.97]
[1748209019529,4.02483581,2515.9,2515.4,3.97547257]
[1748209019878,4.02483581,2515.9,2515.4,7.94547257]
[1748209020111,4.02483581,2515.9,2515.5,3.97533981]
[1748209020512,3.97488242,2515.8,2515.2,5.1221]
[1748209020822,3.97494055,2515.8,2515.4,3.9755104]
[1748209022724,4.90466669,2515.9,2515.5,3.97533334]
[1748209022878,4.90466669,2515.9,2515.4,3.9755104]
[1748209023279,3.97487883,2515.8,2515.4,3.97549107]
[1748209024487,3.97519743,2515.6,2515.2,8.31677567]
[1748209024680,3.97519743,2515.6,2515.2,8.311]
[1748209025914,3.97519743,2515.6,2515.2,12.28679935]
[1748209026220,3.9752023,2515.6,2515.2,12.28679935]
[1748209028825,4.77963311,2515.7,2515.2,12.28679935]
[1748209029135,3.97519511,2515.6,2515.2,12.28679935]
[1748209029358,0.8045,2515.7,2515.3,3.97554972]
[1748209029519,4.77955072,2515.7,2515.2,12.28679935]
[1748209030702,4.77955072,2515.7,2515.3,3.97558046]
[1748209030903,4.77955072,2515.7,2515.2,12.28675501]
[1748209031840,4.77959713,2515.7,2515.3,3.97562268]
[1748209032412,4.77959713,2515.7,2515.2,12.28673435]
[1748209037646,4.77960844,2515.7,2515.3,3.97565456]
[1748209039339,6.79351666,2515.7,2515.3,3.97565456]
[1748209039681,0.8045,2515.7,2515.4,3.9754506]
[1748209039887,12.0963912,2515.9,2515.2,8.311]
[1748209040089,12.0963912,2515.9,2515.5,3.97534882]
[1748209040391,3.97489237,2515.8,2515.3,0.8143]
[1748209040579,3.97489237,2515.8,2515.4,3.97544749]
[1748209041597,12.09652141,2515.9,2515.4,3.97544504]
[1748209041993,0.37044587,2515.8,2515.4,3.97544504]
[1748209042280,0.74978507,2515.8,2515.4,3.97544504]
[1748209042881,0.3793392,2515.8,2515.4,3.97544504]
[1748209043380,0.3793392,2515.8,2515.5,3.9752018]
[1748209043586,0.3793392,2515.8,2515.5,3.97532357]
[1748209043881,8.12165626,2515.9,2515.5,3.97532357]
[1748209044422,8.12165626,2515.9,2515.6,3.97514491]
[1748209045197,8.12165626,2515.9,2515.5,3.97529576]
[1748209045598,12.09644475,2515.9,2515.3,0.8143]
[1748209045921,12.09644475,2515.9,2515.5,3.97534788]
[1748209047326,8.12165626,2515.9,2515.3,0.8143]
[1748209047520,4.77662132,2515.5,2515.0,9.07613237]
[1748209047679,4.77662132,2515.5,2515.0,13.04613237]
[1748209048186,3.97572501,2515.3,2514.8,3.97633238]
[1748209048410,0.3706877,2515.4,2514.9,0.7631]
[1748209048610,0.3706877,2515.4,2515.0,3.97614204]
[1748209049422,3.97543192,2515.5,2515.0,3.97614204]
[1748209050617,3.97551848,2515.4,2514.9,4.73932237]
[1748209050924,3.97574383,2515.3,2514.9,0.7631]
[1748209051085,3.97574383,2515.3,2514.9,4.7331]
[1748209051286,3.97574383,2515.3,2514.9,8.70938011]
[1748209051522,3.97558482,2515.4,2514.9,8.70938011]
[1748209051700,3.97558482,2515.4,2514.9,8.70932425]
[1748209054223,3.97569756,2515.3,2514.9,4.7331]
[1748209054429,3.97557831,2515.4,2514.9,8.70938425]
[1748209055310,3.97557831,2515.4,2514.9,4.73938425]
[1748209055514,3.97557831,2515.4,2514.9,8.70938425]
[1748209055830,0.8012,2515.7,2514.9,0.7631]
[1748209056007,3.97573335,2515.3,2514.9,0.7631]
[1748209056204,3.97573335,2515.3,2514.9,4.73937546]
[1748209056404,3.97573335,2515.3,2514.9,0.7631]
[1748209056724,3.9758962,2515.2,2514.9,3.97]
[1748209056928,4.77683979,2515.3,2514.9,3.97]
[1748209059450,0.8011,2515.3,2514.9,3.97]
[1748209060030,3.97554106,2515.4,2514.9,7.94626463]
[1748209061533,4.93832787,2515.4,2514.9,7.94626463]
[1748209065106,3.97554106,2515.4,2514.9,7.94626463]
[1748209066527,3.97554106,2515.4,2515.0,3.97611696]
[1748209067962,0.7579,2515.3,2514.5,0.79482362]
[1748209068256,0.7579,2514.5,2513.8,0.8326]
[1748209068431,3.97709195,2514.4,2513.8,4.81055001]
[1748209068630,3.97733093,2514.3,2513.8,4.81055001]
[1748209069156,3.97742114,2514.2,2513.8,4.81055001]
[1748209069325,3.97742114,2514.2,2513.8,3.971]
[1748209070109,6.36024359,2514.4,2513.7,3.97814749]
[1748209070313,3.97731559,2514.3,2513.7,3.97818845]
[1748209070527,3.97753643,2514.2,2513.7,3.97818845]
[1748209071436,3.97758231,2514.1,2513.7,3.97818845]
[1748209072463,3.97749699,2514.2,2513.7,3.97818845]
[1748209075353,3.97758454,2514.1,2513.7,3.97818845]
[1748209075543,3.97753663,2514.2,2513.7,3.97818845]
[1748209075749,4.92783081,2514.2,2513.7,3.97818845]
[1748209076132,3.97763582,2514.1,2513.6,4.78934233]
[1748209076355,3.97773608,2514.0,2513.6,4.78934233]
[1748209077056,4.80986209,2513.9,2513.5,3.97850522]
[1748209077261,4.45914241,2513.8,2513.4,3.97866129]
[1748209077558,4.80985704,2513.9,2513.4,3.97866129]
[1748209078558,4.44656803,2514.9,2514.2,3.9773139]
[1748209078559,8.07165626,2514.4,2514.2,3.9773139]
[1748209078722,0.8055,2514.7,2513.9,3.972]
[1748209078922,0.8055,2514.7,2514.2,3.97731409]
[1748209078923,4.78212325,2514.7,2514.2,3.97731409]
[1748209079134,0.87586081,2514.6,2514.2,3.97731409]
[1748209079348,4.85263926,2514.6,2514.2,3.97731409]
[1748209079549,0.87586081,2514.6,2514.3,3.97718391]
[1748209079761,0.87586081,2514.6,2514.3,3.9772228]
[1748209079947,3.97654443,2514.8,2514.3,3.9772228]
[1748209080124,4.37313587,2514.8,2514.3,3.9772228]
[1748209080526,3.97663995,2514.7,2514.3,3.9772228]
[1748209080734,3.97654322,2514.8,2514.2,3.97732832]
[1748209080935,3.97654322,2514.8,2514.4,3.97709025]
[1748209081262,1.27356432,2514.7,2514.4,3.97709025]
[1748209081459,8.07165626,2515.0,2514.7,3.97652182]
[1748209081642,6.77661697,2515.2,2514.7,3.9765326]
[1748209081643,6.7726974,2515.2,2514.7,3.9765326]
[1748209081839,10.74860966,2515.2,2514.7,3.97650827]
[1748209082035,9.15215309,2515.2,2514.7,3.97650827]
[1748209082651,5.17624083,2515.2,2514.8,3.97643967]
[1748209082828,10.53943177,2515.2,2514.8,3.97643967]
[1748209083228,2.59157296,2515.2,2514.8,3.97643967]
[1748209083467,6.56740346,2515.2,2514.8,3.97643967]
[1748209083678,2.59157296,2515.2,2514.8,3.97643967]
[1748209083973,6.56747578,2515.2,2514.7,3.97650608]
[1748209084626,6.56747578,2515.2,2514.8,3.97645282]
[1748209084965,2.59157296,2515.2,2514.8,3.97645282]
[1748209085175,3.97599075,2515.1,2514.7,3.97659957]
[1748209085466,1.20424083,2515.2,2514.8,3.97639178]
[1748209085854,5.18006968,2515.2,2514.8,3.97639178]
[1748209086366,4.37686968,2515.2,2514.8,3.97639178]
[1748209086775,4.37686968,2515.2,2514.7,3.97652939]
[1748209087140,4.37686968,2515.2,2514.8,3.9764577]
[1748209087383,4.37686968,2515.2,2514.7,3.97650092]
[1748209087880,4.37686968,2515.2,2514.3,7.94924075]
[1748209087881,3.97663149,2514.7,2514.3,0.7637]
[1748209088885,3.97663149,2514.7,2514.3,4.74092826]
[1748209089251,3.97663149,2514.7,2514.3,0.7637]
[1748209089451,3.97663149,2514.7,2514.3,4.74091495]
[1748209090488,3.97663149,2514.7,2514.3,4.74093841]
[1748209090985,3.97663149,2514.7,2514.3,0.7637]
[1748209092499,3.97663149,2514.7,2514.3,4.74093281]
[1748209094503,3.97663149,2514.7,2514.3,0.7637]
[1748209095288,3.97678676,2514.6,2514.3,0.7637]
[1748209095781,4.77226421,2515.0,2514.3,0.7637]
[1748209095979,4.77226421,2515.0,2514.0,0.8091]
[1748209095980,0.7895,2514.6,2514.0,0.8091]
[1748209096277,3.97733263,2514.3,2514.0,3.972]
[1748209096980,4.76632383,2514.6,2514.0,3.972]
[1748209097182,0.7895,2514.6,2514.0,3.972]
[1748209097382,3.97735092,2514.3,2514.0,3.972]
[1748209097693,3.97734114,2514.3,2514.0,3.972]
[1748209098593,4.76629005,2514.6,2513.8,4.7811]
[1748209098888,3.97750533,2514.2,2513.8,4.7811]
[1748209099099,3.97733481,2514.3,2513.8,4.78713859]
[1748209099299,3.97733481,2514.3,2513.8,8.75913859]
[1748209101212,3.97715863,2514.4,2513.9,3.97774035]
[1748209101382,4.69190935,2514.5,2513.9,3.97774035]
[1748209101578,0.71492901,2514.5,2513.9,3.97774035]
[1748209101886,1.15891556,2514.6,2513.8,4.7811]
[1748209102077,0.36941556,2514.6,2514.4,3.97708092]
[1748209102286,0.37828697,2514.7,2514.4,4.76818092]
[1748209102609,0.37828697,2514.7,2514.4,0.7911]
[1748209102907,0.36941556,2514.8,2514.4,4.76807436]
[1748209103310,0.36941556,2514.8,2514.5,3.97685683]
[1748209103480,0.36941556,2514.8,2514.4,4.7681266]
[1748209103811,12.04801865,2514.9,2514.4,4.7681266]
[1748209104196,3.97647495,2514.8,2514.4,4.7681266]
[1748209104810,8.07165626,2514.9,2514.5,3.97686128]
[1748209105009,6.35977563,2514.6,2513.8,0.8113]
[1748209105302,6.35977563,2514.6,2513.6,3.97828653]
[1748209105303,3.97766505,2514.1,2513.6,3.97828653]
[1748209105507,0.8079,2514.4,2513.6,7.95028653]
[1748209105729,0.36942822,2514.6,2514.5,3.97693378]
[1748209105905,0.36942822,2514.6,2514.5,9.49017528]
[1748209106084,0.36942822,2514.6,2514.5,18.09884341]
[1748209106403,0.37828762,2514.7,2514.6,3.97677563]
[1748209106612,0.37828762,2514.7,2514.6,12.0093336]
[1748209107111,0.37828762,2514.7,2514.6,7.75091368]
[1748209107316,0.37828762,2514.7,2514.6,4.79397563]
[1748209107517,3.9758484,2515.2,2514.7,3.9765152]
[1748209107810,3.9758484,2515.2,2514.8,3.97645415]
[1748209108110,3.97574478,2515.3,2514.8,3.97645415]
[1748209109115,3.97556825,2515.4,2514.8,3.97645415]
[1748209109406,3.97590344,2515.2,2514.7,3.97656498]
[1748209109585,4.41028758,2515.3,2514.8,3.97644233]
[1748209110411,4.41028758,2515.3,2514.8,7.94844233]
[1748209110812,4.41026664,2515.3,2514.8,3.972]
[1748209110979,3.9760564,2515.1,2514.6,4.79390856]
[1748209111179,5.30172088,2515.1,2514.6,8.76590856]
[1748209111917,1.32566448,2515.1,2514.7,3.97657892]
[1748209118328,5.30166834,2515.1,2514.7,3.97657892]
[1748209118612,1.32566448,2515.1,2514.7,3.97657892]
[1748209119477,8.07165626,2515.3,2514.9,3.97630124]
[1748209119676,8.07165626,2515.3,2515.0,3.97603199]
[1748209119874,8.07165626,2515.3,2515.1,3.97598407]
[1748209120113,0.39463179,2515.4,2515.1,3.97586809]
[1748209120429,0.37828923,2515.5,2515.1,3.97586809]
[1748209122019,3.97526851,2515.6,2515.1,3.97586809]
[1748209122176,5.72962195,2515.6,2515.1,3.97586809]
[1748209122381,3.97552865,2515.4,2515.0,3.971]
[1748209122618,3.97552865,2515.4,2515.0,7.94713607]
[1748209123319,4.38092492,2515.4,2515.0,7.94713607]
[1748209123821,4.38092492,2515.4,2515.0,3.971]
[1748209123997,3.97570156,2515.3,2515.0,3.971]
[1748209124181,4.7499191,2515.4,2515.0,3.971]
[1748209124517,4.45078256,2515.3,2514.9,3.971]
[1748209126717,4.45078256,2515.3,2514.9,7.94725418]
[1748209129645,1.16736957,2515.4,2515.0,3.97607199]
[1748209129786,0.39296957,2515.4,2515.0,3.97607199]
[1748209129985,3.9755726,2515.4,2515.0,3.97607199]
[1748209132344,0.36966244,2515.5,2515.3,3.97558408]
[1748209132493,0.36966244,2515.5,2515.4,3.97551085]
[1748209132691,0.36966244,2515.6,2515.4,3.97551085]
[1748209133213,0.36966244,2515.6,2515.5,3.97535281]
[1748209133605,8.07165626,2515.8,2515.5,3.97523191]
[1748209134121,8.07165626,2515.8,2515.6,3.97509904]
[1748209134931,8.07165626,2515.8,2515.4,0.7808]
[1748209135083,8.07165626,2515.8,2515.4,4.75630191]
[1748209135582,12.04653606,2515.8,2515.4,0.7808]
[1748209135989,12.04653606,2515.8,2515.4,3.97548535]
[1748209136184,8.07165626,2515.8,2515.5,3.97534222]
[1748209136488,8.07165626,2515.8,2515.5,4.7704366]
[1748209136688,8.07165626,2515.8,2515.6,3.97510218]
[1748209137797,0.05,2515.9,2515.6,3.97510218]
[1748209137998,0.05,2515.9,2515.5,3.97530883]
[1748209139447,3.97534624,2515.6,2515.2,0.7808]
[1748209139619,0.7950383,2515.5,2515.2,4.75660368]
[1748209139796,3.97534624,2515.6,2515.2,3.97580368]
[1748209139998,3.97542744,2515.5,2515.0,8.70958764]
[1748209140199,3.97534624,2515.6,2515.0,4.7335]
[1748209140444,12.84875626,2515.6,2514.7,4.325]
[1748209140629,3.97592945,2515.2,2514.7,8.30152961]
[1748209141319,3.97598505,2515.1,2514.7,4.325]
[1748209141756,3.97589719,2515.2,2514.7,8.30158351]
[1748209141947,3.97589719,2515.2,2514.7,4.325]
[1748209142102,3.97609144,2515.1,2514.7,4.325]
[1748209142600,3.97590205,2515.2,2514.7,8.30157627]
[1748209142829,3.97610361,2515.1,2514.7,4.325]
[1748209143137,3.97590805,2515.2,2514.7,8.30158722]
[1748209144337,0.7829,2515.1,2514.7,8.30158722]
[1748209145178,4.75893954,2515.1,2514.7,4.325]
[1748209145335,0.7829,2515.1,2514.7,8.30159768]